Cogmind - Beta 16 @@@ ROGUE MODE // 2025.10.22 @ 09:10:40 Player: Kotyk77 Result: Destroyed by A-27 Freighter with PD Laser Performance ------------- Evolutions (3) 1500 Regions Visited (5) 1000 Robots Destroyed (59) 295 Value Destroyed (1547) 1547 Prototype IDs (11) 220 Alien Tech Used (0) 0 Bonus (137) 137 TOTAL SCORE: 4699 Bonus ------- Follower Combat Kills 178 Friendly Fire -41 Cogmind --------- Core Integrity 0/700 Matter 195/300 Energy 100/100 System Corruption 3% Temperature Cool (6) Movement Core (50) Location -7/Factory Parts ------- > --- POWER (1) -------- (None) > --- PROPULSION (3) --- (None) > --- UTILITY (7) ------ Visual Processing Unit Hacking Suite > --- WEAPON (2) ------- (None) > --- INVENTORY (5) ---- Ion Engine Improved Ion Engine Matter Filter Improved Medium Armor Plating Hacking Suite Peak State ------------ > --- POWER ------------ Reinforced Ion Engine > --- PROPULSION ------- Armored Wheel Armored Huge Wheel > --- UTILITY ---------- High-capacity Storage Unit Visual Processing Unit Improved Targeting Computer Transmission Jammer Improved Medium Armor Plating Hacking Suite Hacking Suite > --- WEAPON ----------- 8R-AWN's Boregun Axe > --- INVENTORY -------- Ion Engine Ion Engine Improved Ion Engine Armored Huge Wheel Matter Filter Improved Propulsion Shielding Improved Medium Armor Plating Improved Medium Armor Plating Improved Medium Armor Plating Hacking Suite Hacking Suite Hacking Suite Hacking Suite Hacking Suite System Restoration Module Cooled Pulse Rifle Improved Assault Rifle High-powered Shotgun Grenade Launcher [Rating: 50] Favorites ----------- Power Ion Engine Engine Ion Engine Propulsion Wheel Leg Aluminum Leg Wheel Wheel Utility Hacking Suite Device Terrain Scanner Storage Large Storage Unit Processor Improved Targeting Computer Hackware Hacking Suite Protection Improved Medium Armor Plating Weapon 8R-AWN's Boregun Energy Gun Heavy EM Shotgun Ballistic Gun 8R-AWN's Boregun Launcher Grenade Launcher Slashing Weapon Axe Special Melee Weapon Datajack Build | -11 -10 -9 -9 -8 -7 ------- Run | Yrd Mat Mat Min Mat Fac Slots Evolved 6 | . . 2 . 2 2 Power . | . . . . . . Propulsion 1 | . . . . . 1 Utility 5 | . . 2 . 2 1 Weapon . | . . . . . . Parts Attached 52 | 7 6 12 1 12 14 Power 6 | 1 . 1 . 2 2 Engine 6 | 1 . 1 . 2 2 Core . | . . . . . . Reactor . | . . . . . . Propulsion 11 | 2 2 1 . 2 4 Treads . | . . . . . . Leg 1 | . 1 . . . . Wheel 10 | 2 1 1 . 2 4 Hover . | . . . . . . Flight . | . . . . . . Utility 19 | 2 1 5 1 4 6 Device 5 | 1 . 2 . . 2 Storage 4 | 1 1 . . 1 1 Processor 3 | . . . 1 1 1 Hackware 2 | . . 1 . 1 . Protection 5 | . . 2 . 1 2 Artifact . | . . . . . . Weapon 16 | 2 3 5 . 4 2 Energy Gun 6 | 1 1 3 . . 1 Energy Cannon . | . . . . . . Ballistic Gun 6 | 1 . 2 . 3 . Ballistic Cannon . | . . . . . . Launcher 2 | . 1 . . . 1 Special Weapon . | . . . . . . Impact Weapon . | . . . . . . Slashing Weapon 1 | . . . . 1 . Piercing Weapon . | . . . . . . Special Melee Weapon 1 | . 1 . . . . Unidentified Prototypes 4 | . . 3 . . 1 Parts Lost 16 | . 2 . . . 14 Power . | . . . . . . Propulsion 4 | . 1 . . . 3 Utility 7 | . . . . . 7 Weapon 5 | . 1 . . . 4 Highest Loss Streak 9 | . 1 . . . 9 To Critical Strikes . | . . . . . . Average Backups 14 | 2 8 14 15 15 17 Power 2 | . 1 1 2 2 2 Propulsion 1 | 1 3 3 2 1 . Utility 7 | . 2 7 8 8 10 Weapon 2 | . 1 1 3 3 4 Tool/Special . | . . . . . . Unused Backups 20 | . 1 3 . 4 12 Power 1 | . . . . . 1 Propulsion 3 | . 1 1 . 1 . Utility 12 | . . 2 . 2 8 Weapon 4 | . . . . 1 3 Tool/Special . | . . . . . . Average Slot Usage (%) 95 | . 99 95 100 97 90 Engine 9 | . 14 10 11 9 6 Wheel 19 | . 27 22 22 18 16 Device 9 | . 14 13 11 9 5 Storage 9 | . 14 11 11 9 6 Processor 8 | . . . 11 9 14 Hackware 11 | . . 8 11 17 14 Protection 6 | . . 9 . 7 8 Energy Gun 3 | . 12 10 . . . Ballistic Gun 12 | . 11 8 22 17 7 Slashing Weapon 2 | . . . . . 5 Peak Build Rating 50 | 7 8 27 25 36 50 Average Rating 29 | 5 7 20 25 33 43 On Entrance 16 | . 7 7 26 25 36 Avg Prop Armor Cover (%) . | . . . . . . Naked Turns . | . . . . . . Heaviest Build 74 | 15 30 38 35 67 74 Greatest Support 40 | 26 32 32 26 26 40 Greatest Overweight (x) 14 | 1 1 3 1 2 14 Average Overweight (x) 1 | . . . 1 1 1 Largest Inventory Capacity 20 | 8 15 15 15 20 20 Average Capacity 16 | 7 9 15 15 16 19 Most Carried 20 | 5 11 15 15 18 20 Average Carried 15 | 2 8 14 15 15 18 Final Capacity 20 | 8 15 15 15 20 5 Final Carried 18 | 5 11 15 15 18 5 Class Distribution -------------------- 44% | Mutant 32% | Hacker-Mutant 22% | Scavenger-Mutant Dominant Class ---------------- Mutant | -10/Materials Mutant | -9/Materials Mutant | -9/Mines Hacker-Mutant | -8/Materials Hacker-Mutant | -7/Factory Resources | -11 -10 -9 -9 -8 -7 ----------- Run | Yrd Mat Mat Min Mat Fac Matter Collected 1755 | 294 165 233 194 395 474 Remotely . | . . . . . . Salvage Created 2023 | 75 190 349 249 574 586 Parts 132 | 5 21 29 12 35 30 Haulers Intercepted 2 | . 1 1 . . . Recyclers Shooed . | . . . . . . Parts Field Recycled . | . . . . . . Retrieved Matter . | . . . . . . Parts Self-Destructed . | . . . . . . Prevented . | . . . . . . Parts Restored . | . . . . . . Kills | -11 -10 -9 -9 -8 -7 ------- Run | Yrd Mat Mat Min Mat Fac Combat Hostiles Destroyed 33 | . 4 5 5 7 12 Melee 2 | . . . . . 2 Guns 26 | . 2 4 5 6 9 AOE 5 | . 2 1 . 1 1 Classes Destroyed 12 | 2 4 2 1 2 1 Worker 6 | . . 1 . 5 . Tunneler 2 | 1 . 1 . . . Hauler 2 | . 1 1 . . . Recycler 4 | 1 . . 2 . 1 Operator 6 | . 3 1 . 1 1 Watcher 6 | . 2 1 . 2 1 Swarmer 10 | . . . 4 . 6 Grunt 17 | . 4 4 1 3 5 Brawler 1 | . . . . 1 . Duelist 2 | . . 1 . 1 . Sentry 2 | . . . . 2 . Programmer 1 | . . . . . 1 Best Kill Streak 7 | 2 6 3 6 7 3 Combat Bots Only 4 | . 3 2 4 3 2 Max Kills in Single Turn 2 | 1 2 2 1 2 1 Gunslinging . | . . . . . . Exploded 1 | . 1 1 . 1 1 Melee 1 | . . . . . 1 Uniques/NPCs Destroyed . | . . . . . . Combat | -11 -10 -9 -9 -8 -7 -------- Run | Yrd Mat Mat Min Mat Fac Hostile Shots Fired 308 | . 21 6 11 26 244 Missed 76 | . 2 3 4 4 63 Hits 232 | . 19 3 7 22 181 Projectile 232 | . 19 3 7 22 181 AOE 1 | . . . . . 1 Critical Strikes 5 | . . . . . 5 Damage Taken 3700 | . 247 84 60 349 2960 Core 810 | . 30 12 . 45 723 Absorbed by Shields . | . . . . . . Redirected to Shielding 101 | . . 6 . . 95 Core Remaining (%) 94 | 100 88 . 97 91 . Volleys Fired 188 | 8 18 23 20 35 84 Largest 2 | 1 2 2 2 2 2 Hottest 100 | 20 70 100 53 55 90 Shots Fired 270 | 8 34 35 40 65 88 Gun 261 | 8 28 35 40 65 85 Cannon . | . . . . . . Launcher 9 | . 6 . . . 3 Special . | . . . . . . Kinetic 216 | 8 10 13 40 65 80 Thermal 10 | . 3 2 . . 5 Explosive 9 | . 6 . . . 3 Electromagnetic 35 | . 15 20 . . . Robot Hit Streak 8 | 3 6 7 7 8 7 Robot Miss Streak 6 | 1 2 2 3 6 5 Penetration Max 1 | . . 1 1 1 1 Secondary Targets 2 | . . . . 2 . Max Gunslinging Chain 1 | . . . . 1 . Shots Hit Robots 157 | 6 16 25 12 39 59 Core Hits 99 | 3 18 14 7 23 34 Critical Kills 10 | . . . . 7 3 Critical Parts Destroyed 17 | . . 5 2 4 6 Critical Strikes 28 | . . 5 2 11 10 Destroy 27 | . . 5 2 11 9 Sever 1 | . . . . . 1 Melee Attacks 18 | . 3 . . . 15 Impact . | . . . . . . Slashing 15 | . . . . . 15 Piercing . | . . . . . . Sneak Attacks 2 | . 1 . . . 1 Combat Hostiles 1 | . 1 . . . . Follow-up Attacks . | . . . . . . Damage Inflicted 4146 | 69 557 528 217 896 1879 Guns 2613 | 69 165 468 217 717 977 Cannons . | . . . . . . Explosions 1256 | . 392 60 . 179 625 Melee 277 | . . . . . 277 Ramming . | . . . . . . Kinetic 2060 | 69 69 125 217 717 863 Thermal 429 | . 61 75 . 179 114 Explosive 978 | . 353 . . . 625 Electromagnetic 402 | . 74 328 . . . Impact . | . . . . . . Slashing 277 | . . . . . 277 Piercing . | . . . . . . Highest Corruption 3 | . . . . . 3 Average Corruption 1 | . . . . . 1 Corruption Purged . | . . . . . . Corruption Blocked . | . . . . . . Effects 4 | . . . . . 4 Message Errors 1 | . . . . . 1 Matter Fused 1 | . . . . . 1 Data Loss (minor) 1 | . . . . . 1 Data Loss (major) 1 | . . . . . 1 Overload Shots 2 | . . . . . 2 Overflow Damage 85 | . 16 . . 41 28 Projectiles . | . . . . . . Explosions 85 | . 16 . . 41 28 Melee . | . . . . . . Knockbacks . | . . . . . . Impact . | . . . . . . Kinetic . | . . . . . . Secondary . | . . . . . . Self-Inflicted Damage 129 | . 22 52 . . 55 Shots 4 | . 1 2 . . 1 Rammed . | . . . . . . Targets Rammed . | . . . . . . Kicked . | . . . . . . Crushed . | . . . . . . Highest Temperature 93 | . 93 60 11 15 60 Average Temperature 24 | . 44 24 8 6 16 Received Heat Transfer 558 | . 129 18 6 162 243 Siege Activations . | . . . . . . Martial Activations . | . . . . . . Shielding Activations . | . . . . . . Robots Disrupted . | . . . . . . Combat Hostiles . | . . . . . . Robots Corrupted . | . . . . . . Combat Hostiles . | . . . . . . Parts Fried 1 | . . 1 . . . Impact Corruptions . | . . . . . . Robots Melted . | . . . . . . Combat Hostiles . | . . . . . . Parts Melted 2 | . . . . . 2 Heat Transferred 542 | . 150 137 . 100 155 Parts Sabotaged . | . . . . . . Parts Stolen . | . . . . . . Parts Stripped . | . . . . . . Power Chain Reactions 3 | . 1 2 . . . Alert | -11 -10 -9 -9 -8 -7 ------- Run | Yrd Mat Mat Min Mat Fac Maximum Alert Level . | . . . . . . Low Security (%) 100 | 100 100 100 100 100 100 Level 1 . | . . . . . . Level 2 . | . . . . . . Level 3 . | . . . . . . Level 4 . | . . . . . . Level 5 . | . . . . . . High Security . | . . . . . . Max Security . | . . . . . . Peak Influence 182 | 5 173 95 168 182 150 Initial 57 | . . 40 10 57 5 Average 64 | . 67 46 82 102 47 Influence Increases 1589 | 10 222 185 258 408 506 Destroy 0b10 Robot/C 780 | . 80 100 160 200 240 Destroy 0b10 Robot/NC 130 | 10 30 25 10 40 15 Destroy Leader 146 | . 26 24 . 54 42 Allied During Kill 26 | . . . 8 18 . Successful Hack 72 | . 23 15 . 12 22 Disable Machine 150 | . . 15 . 30 105 Destroy Structure 120 | . 33 6 5 39 37 Lose Combat Pursuer 165 | . 30 . 75 15 45 Influence Decreases 1546 | 10 124 256 137 543 476 Entered New Map 174 | . . 58 17 91 8 Time Decay 1022 | 10 104 198 120 262 328 Lost Part 160 | . 20 . . . 140 Lost Ally 40 | . . . . 40 . Purge Threat 150 | . . . . 150 . Squads Dispatched 10 | . 2 1 . 1 6 Investigation 1 | . 1 . . . . Extermination 2 | . . . . . 2 Reinforcement 7 | . 1 1 . 1 4 Assault . | . . . . . . Garrison . | . . . . . . Intercept . | . . . . . . Searches Triggered . | . . . . . . Construction Impeded 1 | . . . . . 1 Haulers Reinforced 1 | . . . . . 1 Active Scanning Responses . | . . . . . . Cargo Convoy Interrupts 1 | . . . . . 1 Stealth | -11 -10 -9 -9 -8 -7 --------- Run | Yrd Mat Mat Min Mat Fac Distress Signals 9 | . 1 4 . 2 2 Communications Jammed . | . . . . . . Distress Signals . | . . . . . . Times Spotted 92 | . 12 12 12 19 37 Peak Tracking Total 11 | . 4 4 5 3 11 Tactical Retreats 7 | . 2 . 2 1 2 Traps | -11 -10 -9 -9 -8 -7 ------- Run | Yrd Mat Mat Min Mat Fac Traps Triggered 3 | . . 2 . . 1 Indirectly . | . . . . . . Trap Hack Attempts . | . . . . . . Triggered . | . . . . . . Disarmed . | . . . . . . Reprogrammed . | . . . . . . Reused . | . . . . . . Traps Extracted . | . . . . . . Installed . | . . . . . . Triggered . | . . . . . . Machines | -11 -10 -9 -9 -8 -7 ---------- Run | Yrd Mat Mat Min Mat Fac Machines Disabled 10 | . . 1 . 2 7 Max in Single Turn 2 | . . 1 . 1 2 Garrison Access 1 | . . . . . 1 Machines Repaired . | . . . . . . Machines Dismantled . | . . . . . . Machines Sabotaged . | . . . . . . Overloaded Fab Kills . | . . . . . . Hacking | -11 -10 -9 -9 -8 -7 --------- Run | Yrd Mat Mat Min Mat Fac Machines Accessed 15 | . 3 4 . 5 3 Terminals 12 | . 3 3 . 4 2 Fabricators . | . . . . . . Repair Stations . | . . . . . . Recycling Units . | . . . . . . Scanalyzers 2 | . . 1 . 1 . Garrison Access 1 | . . . . . 1 Total Hacks 45 | . 14 12 . 13 6 Successful 29 | . 7 10 . 9 3 Failed 14 | . 7 1 . 3 3 Catastrophic 1 | . . . . . 1 Database Lockouts 2 | . . 1 . 1 . Manual 22 | . 11 3 . 8 . Terminals 34 | . 14 5 . 10 5 Fabricators . | . . . . . . Repair Stations . | . . . . . . Recycling Units . | . . . . . . Scanalyzers 10 | . . 7 . 3 . Garrison Access 1 | . . . . . 1 Terminal Hacks 12 | . 5 2 . 3 2 Prototype ID Bank 3 | . 1 1 . . 1 Level Access Points 1 | . . . . 1 . Branch Access Points 2 | . . 1 . . 1 Terminal Index 1 | . 1 . . . . Unreport Threat 1 | . . . . 1 . Locate Traps 2 | . 1 . . 1 . Patrol Status 1 | . 1 . . . . Recall Reinforcements 1 | . 1 . . . . Fabricator Hacks . | . . . . . . Repair Station Hacks . | . . . . . . Recycling Unit Hacks . | . . . . . . Scanalyzer 9 | . . 6 . 3 . Insert Component 3 | . . 2 . 1 . Analyze 3 | . . 2 . 1 . Retrieve Study 3 | . . 2 . 1 . Garrison Access Hacks 1 | . . . . . 1 Seal Access 1 | . . . . . 1 Unauthorized Hacks 7 | . 2 2 . 3 . Terminals 7 | . 2 2 . 3 . Botnet 7 | . 2 2 . 3 . Fabricators . | . . . . . . Repair Stations . | . . . . . . Recycling Units . | . . . . . . Scanalyzers . | . . . . . . Garrison Access . | . . . . . . Data Cores Recovered 3 | . 2 1 . . . Used 1 | . 1 . . . . Hacking Detections 12 | . 3 4 . 3 2 Full Trace Events 1 | . 1 . . . . Feedback Events . | . . . . . . Feedback Blocked . | . . . . . . Robot Schematics Acquired . | . . . . . . Robots Built . | . . . . . . Authchips . | . . . . . . Time . | . . . . . . Total Robot Build Rating . | . . . . . . Part Schematics Acquired 3 | . . 2 . 1 . Parts Built . | . . . . . . Authchips . | . . . . . . Time . | . . . . . . Total Part Build Rating . | . . . . . . Part Studies Acquired 3 | . . 2 . 1 . Parts Repaired . | . . . . . . Time . | . . . . . . Parts Recycled . | . . . . . . Recycled Matter . | . . . . . . Retrieved Matter . | . . . . . . Retrieved Components . | . . . . . . Parts Scanalyzed 3 | . . 2 . 1 . Part Schematics Acquired 3 | . . 2 . 1 . Parts Damaged . | . . . . . . Bothacking | -11 -10 -9 -9 -8 -7 ------------ Run | Yrd Mat Mat Min Mat Fac Used RIF Installer . | . . . . . . Robots Hacked 1 | . 1 . . . . Non-combat . | . . . . . . Combat 1 | . 1 . . . . Robot Hacks Applied 1 | . 1 . . . . parse_system 1 | . 1 . . . . Relay Couplers Released . | . . . . . . Fabnet Peak Effective % . | . . . . . . Robots Rewired . | . . . . . . Allies Hacked . | . . . . . . Hacks Repelled . | . . . . . . Allies | -11 -10 -9 -9 -8 -7 -------- Run | Yrd Mat Mat Min Mat Fac Total Allies 2 | . . . 2 . . Largest Group 2 | . . . 2 2 . Highest-Rated Group 41 | . . . 41 41 . Highest-Rated Ally 31 | . . . 31 31 . Total Orders . | . . . . . . Ally Attacks 26 | . . . 10 16 . Total Damage 397 | . . . 179 218 . Kills 6 | . . . 3 3 . Allies Corrupted . | . . . . . . Allies Melted . | . . . . . . Intel | -11 -10 -9 -9 -8 -7 ------- Run | Yrd Mat Mat Min Mat Fac Active Infowar (turns) 2623 | 18 328 379 328 575 995 Optics 997 | . . . . 2 995 Terrain 1262 | . . 361 328 573 . Seismic 458 | 18 328 112 . . . Jamming 740 | . . . . . 740 Robot Analysis Total . | . . . . . . Derelict Logs Recovered 1 | . . . 1 . . Drone Launches . | . . . . . . Drone Recoveries . | . . . . . . Exploration | -11 -10 -9 -9 -8 -7 ------------- Run | Yrd Mat Mat Min Mat Fac Turns Passed 2731 | 87 328 418 328 575 995 Spaces Moved 1895 | 63 216 299 235 429 653 Core 31 | 1 . . . . 30 Treads . | . . . . . . Legs 2 | . 2 . . . . Wheels 1862 | 62 214 299 235 429 623 Hover . | . . . . . . Flight . | . . . . . . Fastest Speed 50 | 50 90 95 95 85 50 Average Speed 100 | 88 95 103 95 100 103 Slowest Speed 750 | 95 190 115 95 110 750 Overloaded Moves . | . . . . . . Propulsion Burnouts . | . . . . . . Robots Hopped . | . . . . . . Potential Cave-ins . | . . . . . . Cave-ins Triggered . | . . . . . . Exploration Rate (%) 25 | 5 27 31 36 36 17 Regions Visited 5 Branch Regions 1 Pre-discovered Areas . | . . . . . . Known Exits Taken 2 | . . 1 . 1 . Unknown Exits Taken 3 | 1 1 . 1 . . Scrap Searched 1 | . . . 1 . . Spaces Dug 6 | . . . . . 6 Terrain Destroyed 158 | . 50 5 12 55 36 Melee 6 | . . . . . 6 Projectile 25 | . . . 12 11 2 AOE 127 | . 50 5 . 44 28 Terrain Rammed . | . . . . . . Walls Destroyed . | . . . . . . Machines Disabled . | . . . . . . Actions | -11 -10 -9 -9 -8 -7 --------- Run | Yrd Mat Mat Min Mat Fac Total 2428 | 82 301 373 299 513 860 Wait 171 | . 45 9 44 14 59 Move 1890 | 62 215 298 234 428 653 Hop . | . . . . . . Pick Up 46 | 5 7 12 . 11 11 Fast Attach 24 | 7 3 11 . 1 2 Attach 12 | . . 3 . 1 8 Detach 3 | . 1 1 . . 1 Swap 34 | . 5 4 1 11 13 Drop 42 | . 4 12 . 12 14 Fire 188 | 8 18 23 20 35 84 Melee 18 | . 3 . . . 15 Ram . | . . . . . . Kick . | . . . . . . Crush . | . . . . . . Escape Stasis . | . . . . . . Rewire . | . . . . . . Trap . | . . . . . . Miscellaneous . | . . . . . . Route ------- -11/Scrapyard -10/Materials (discovered 3 exits: *Mat / [*Min] / [*Sub]) -9/Materials (discovered 2 exits: *Min x2) -9/Mines -8/Materials (discovered 3 exits: *Fac x3) -7/Factory (discovered 3 exits: Sto / Low x2) History --------- Turn | Location | Event 16 | -11/Scrapyard | Discovered new exit (range 15) 88 | -11/Scrapyard | Entered Materials 242 | -10/Materials | Discovered new exit (range 9) 248 | -10/Materials | Discovered new exit (range 16) 319 | -10/Materials | Discovered new exit (range 16) 351 | -10/Materials | Build established: Mutant 416 | -10/Materials | Entered another Materials area 416 | -9/Materials | Evolved 2 slots: Utility x2 535 | -9/Materials | Identified exit to Mines 616 | -9/Materials | Met 8R-AWN 636 | -9/Materials | Central database locked down 681 | -9/Materials | Found Prototype Ballistic Gun 681 | -9/Materials | Identified 8R-AWN's Boregun 834 | -9/Materials | Entered Mines 836 | -9/Mines | Followed 8R-AWN into the Mines 846 | -9/Mines | Met a Derelict bent on vengeance 899 | -9/Mines | Learned Materials terminal intel 965 | -9/Mines | Discovered new exit (range 8) 1006 | -9/Mines | Excavation squad dispatched 1006 | -9/Mines | A large section of the Mines collapsed 1162 | -9/Mines | Entered Materials 1162 | -8/Materials | Accompanied by 2 allies 1162 | -8/Materials | Evolved 2 slots: Utility x2 1163 | -8/Materials | Loaded intel: 12 terminal locations 1167 | -8/Materials | Led the pair of lost Derelicts to an unsafe place 1485 | -8/Materials | Central database locked down 1538 | -8/Materials | Identified exit to Factory 1737 | -8/Materials | Entered Factory 1737 | -7/Factory | Evolved 2 slots: Propulsion x1, Utility x1 2029 | -7/Factory | Build established: Scavenger-Mutant 2352 | -7/Factory | Identified exit to Storage 2352 | -7/Factory | Identified exit to Lower Caves 2423 | -7/Factory | Build established: Hacker-Mutant 2698 | -7/Factory | Cargo convoy interrupted 2708 | -7/Factory | Core integrity fell below 50% 2717 | -7/Factory | Core integrity fell below 20% 2732 | -7/Factory | Destroyed by A-27 Freighter with PD Laser Last Messages --------------- 02711_ Transmission Jammer destroyed. 02711_ Penetrated by Slug. 02712_ Hacking Suite destroyed. 02714_ U-05 Engineer builds a Wall. 02714_ P-60 Hacker resets H-55 Commando, system corruption cleaned. 02714_ Penetrated by Slug. 02714_ M-28 Smith repairs H-55 Commando. 02715_ Penetrated by Slug. 02715_ P-60 Hacker resets H-55 Commando, system corruption cleaned. 02716_ K-01 Serf collects debris. 02716_ P-60 Hacker resets M-28 Smith, system corruption cleaned. 02716_ Slug penetrates M-28 Smith. 02716_ Penetrated by Slug. 02717_ Dropped Hcp. Storage Unit. 02717_ H-55 Commando destroyed. 02718_ U-05 Engineer lays Concrete. 02719_ K-01 Serf collects debris. 02719_ M-28 Smith repairs H-55 Commando. 02720_ U-05 Engineer lays Concrete. 02720_ U-05 Engineer builds a Wall. Map ----- +----------------------------------------------------+ | ????????????????????????????????????????????# | | ??????????????????????????????????########### | | ??????????????????????????????????# = # | | ??????????????????????????????????# # | | ##########????????????????????????# ! # | | #????????????????????????# # | | #????????????????????????# """ """ # | | #????????????????????????# """ """ # | | = [ #??????????????????????????""" """ # | | #???????????????????????????? ?# | | ! #?????????????????????????#####+#### " | | #?????????????????????????# " | | #??????????????########???# " | | "" #######????????# #???# | | " " + #????????# """ #???# | | " ##### #????????# """ =#???# ######## | | % ##### #????????# """ #?### #??# | | ## [ ###""""#+######???# ### #??# | | ]!*[ #???# " ########### | | [!!!% #= ########+##### # ## | | !![= # + + """ ###### | | ^^[ + ""T"" ##### # """ #?# | | !![ # """"" #???# A # """ #?# " | | # #???# # #?# "T | | """""""########???# # "" #?# | | #"" "#"############@ # Y" #?# | | k #? "" #?### | | ##### ################# #?? #???# | | #???# #????????? ! [ # #???#/####???# | | ##+#######+#####????? + ???? ????? | | ##+#### !#????# !!! # #??##?????# | | # """ """ #????# !! # #?????????# | | # """"" """"" #????# !! + +?????????# | | # """"" """"" #????# #### #?????????# | | ## #????########????#?????????# | | #[ #??????????????????????????#? | | ################???????????????????????????? | | ?""" ???????????????????????????????????????????? | | ????????????????????????????????????????????????? | | ?????????????????????????????????????????????????? | | ?????????????????????????????????????????????????? | | ?????????????????????????????????????????????????? | | ?????????????????????????????????????????????????? | | ?????????????????????????????????????????????????? | | ?????????????????????????????????????????????????? | | ?????????????????????????????????????????????????? | | ?????????????????????????????????????????????????? | | ?????????????????????????????????????????????????? | | ?????????????????????????????????????????????????? | | ?????????????????????????????????????????????????? | +----------------------------------------------------+ Best States ------------- Heat Dissipation 38 Energy Generation 14 Energy Capacity 265 Matter Stores 300 Matter Capacity 300 Sight Range 18 Terrain Scan Range 14 Terrain Scan Density 10 Jamming Range 12 Armor Coverage 450 Power Shielding 33 Propulsion Shielding 66 Evasion (%) 50 Targeting Accuracy 6 Target Analysis 5 Matter Filtering 30 Offensive Hacking 20 Item Schematics ----------------- Hacking Suite | -9/Materials | Scanalyzed Wheel | -9/Materials | Scanalyzed Lrg. Storage Unit | -8/Materials | Scanalyzed Robot Schematics ------------------ None Fabricated ------------ Nothing Repaired ---------- Nothing Studied --------- Wheel | -9/Materials | Hacked Com. Wheel | -9/Materials | Hacked Imp. Ion Engine | -8/Materials | Hacked Alien Tech Used ----------------- None Achievements -------------- Follow The Leader Ghost 'Em Item+ Jackpot Throw Away The Key Who Guards The Bodyguard? Challenges ------------ None Game ------ Seed LobotomyShieldHammer Manual? 0 Play Time 00:49:21 Cumulative 98.1 hours Start 2025.10.22 @ 05:51:04 End 2025.10.22 @ 09:10:40 Sessions 5 Manual Loads 0 Difficulty Rogue Special Mode None Game No. 96 Rogue 96 Adventurer 0 Explorer 0 Win Type - Total 0 Types 0/0/0/0/0/0/0/0/0/0 Lore% 21 Gallery% 42 Achievement% 21 Wizard Run 0 Options --------- Layout 1 ASCII 0 Keyboard 1 Movement Numpad Keybinds 0 Fullscreen 1 Font 32/SmallcapsGlow Map View 77x35 Zoom Use 0% Tactical HUD 1 Map Filters NONE Filters NONE Steam 1 RUN: 4f1daa00-a0eb-4419-88e6-13646670ccaa